[Event "Early-Titled-Tuesday-Blitz-February-13-2024"]
[Site "Chess.com"]
[Date "2024.02.13"]
[Round "3"]
[White "Hilary46"]
[Black "Actuary44"]
[Result "1/2-1/2"]
[WhiteElo "2657"]
[BlackElo "2486"]
[TimeControl "180+1"]
[EndTime "8:32:53 PST"]
[Termination "Game drawn by repetition"]

1. e4 {[%clk 0:03:00.9]} 1... b6 {[%clk 0:03:00.1]} 2. d4 {[%clk 0:03:00.4]}
2... Bb7 {[%clk 0:03:00.6]} 3. Bd3 {[%clk 0:03:00.8]} 3... e6 {[%clk 0:03:01.2]}
4. Nf3 {[%clk 0:03:00.9]} 4... Nf6 {[%clk 0:03:01.8]} 5. Qe2 {[%clk 0:03:01.2]}
5... d5 {[%clk 0:03:02.4]} 6. exd5 {[%clk 0:02:53.6]} 6... Nxd5 {[%clk
0:03:03.3]} 7. O-O {[%clk 0:02:45.4]} 7... Be7 {[%clk 0:03:01.8]} 8. c4 {[%clk
0:02:40.8]} 8... Nf6 {[%clk 0:03:01.4]} 9. Nc3 {[%clk 0:02:36]} 9... O-O {[%clk
0:02:59.7]} 10. Bf4 {[%clk 0:02:23.9]} 10... Na6 {[%clk 0:02:57]} 11. Rad1
{[%clk 0:02:22.4]} 11... c6 {[%clk 0:02:45.6]} 12. a3 {[%clk 0:02:19.8]} 12...
Nc7 {[%clk 0:02:40.5]} 13. h3 {[%clk 0:02:15.9]} 13... h6 {[%clk 0:02:34.8]} 14.
Ne5 {[%clk 0:02:13.6]} 14... Nce8 {[%clk 0:02:32.7]} 15. Rfe1 {[%clk 0:02:09]}
15... Nd6 {[%clk 0:02:30.7]} 16. c5 {[%clk 0:02:05.4]} 16... Nde8 {[%clk
0:02:21.9]} 17. b4 {[%clk 0:02:05.5]} 17... a5 {[%clk 0:02:15.5]} 18. Nc4 {[%clk
0:01:53.4]} 18... axb4 {[%clk 0:02:05.9]} 19. axb4 {[%clk 0:01:54.3]} 19... bxc5
{[%clk 0:02:00.8]} 20. dxc5 {[%clk 0:01:51.2]} 20... Nd5 {[%clk 0:01:57.3]} 21.
Nxd5 {[%clk 0:01:48.7]} 21... cxd5 {[%clk 0:01:55.5]} 22. Na5 {[%clk 0:01:47.3]}
22... Rxa5 {[%clk 0:01:50]} 23. bxa5 {[%clk 0:01:46.9]} 23... Qxa5 {[%clk
0:01:47.4]} 24. Rb1 {[%clk 0:01:45.2]} 24... Bc6 {[%clk 0:01:26.7]} 25. Bb5
{[%clk 0:01:45.1]} 25... Bxb5 {[%clk 0:01:22]} 26. Qxb5 {[%clk 0:01:43.9]} 26...
Qc3 {[%clk 0:01:15.5]} 27. Rec1 {[%clk 0:01:41.4]} 27... Qd4 {[%clk 0:01:12.2]}
28. Bg3 {[%clk 0:01:25.9]} 28... e5 {[%clk 0:01:10.5]} 29. Rd1 {[%clk
0:01:14.2]} 29... Qe4 {[%clk 0:00:59.8]} 30. Re1 {[%clk 0:01:04.7]} 30... Qd4
{[%clk 0:00:55.1]} 31. Rbd1 {[%clk 0:01:02.7]} 31... Qxc5 {[%clk 0:00:47.9]} 32.
Qxc5 {[%clk 0:01:02.9]} 32... Bxc5 {[%clk 0:00:48.8]} 33. Rxd5 {[%clk
0:01:03.2]} 33... Bd4 {[%clk 0:00:38.2]} 34. Bxe5 {[%clk 0:01:02.4]} 34... Bxe5
{[%clk 0:00:39.1]} 35. Rdxe5 {[%clk 0:01:02.5]} 35... Nf6 {[%clk 0:00:39.4]} 36.
g4 {[%clk 0:01:01.4]} 36... Kh7 {[%clk 0:00:39]} 37. Kg2 {[%clk 0:01:01.7]}
37... Kg6 {[%clk 0:00:35.8]} 38. Rb5 {[%clk 0:00:58.4]} 38... Rc8 {[%clk
0:00:34.9]} 39. Reb1 {[%clk 0:00:58.1]} 39... Rc2 {[%clk 0:00:33.7]} 40. R1b2
{[%clk 0:00:58.7]} 40... Rc1 {[%clk 0:00:33.6]} 41. Rb6 {[%clk 0:00:57.8]} 41...
h5 {[%clk 0:00:31.9]} 42. f3 {[%clk 0:00:54.6]} 42... hxg4 {[%clk 0:00:31.7]}
43. hxg4 {[%clk 0:00:54.8]} 43... Rc3 {[%clk 0:00:28.6]} 44. R2b5 {[%clk
0:00:53.2]} 44... Rc2+ {[%clk 0:00:27.3]} 45. Kg3 {[%clk 0:00:53.5]} 45... Kh7
{[%clk 0:00:26.1]} 46. Rb7 {[%clk 0:00:49.8]} 46... Kg6 {[%clk 0:00:21.6]} 47.
Ra7 {[%clk 0:00:49.5]} 47... Rc3 {[%clk 0:00:20]} 48. Ra6 {[%clk 0:00:48.1]}
48... Kh7 {[%clk 0:00:19.8]} 49. Rb7 {[%clk 0:00:44]} 49... Ne4+ {[%clk
0:00:18.7]} 50. Kf4 {[%clk 0:00:32.5]} 50... Nc5 {[%clk 0:00:18]} 51. Rc6 {[%clk
0:00:28.6]} 51... Nd3+ {[%clk 0:00:12.7]} 52. Ke3 {[%clk 0:00:27.1]} 52... Rxc6
{[%clk 0:00:13.1]} 53. Kxd3 {[%clk 0:00:27.2]} 53... Kg6 {[%clk 0:00:12.7]} 54.
Ke4 {[%clk 0:00:27.5]} 54... Rf6 {[%clk 0:00:12.2]} 55. Rb5 {[%clk 0:00:25.8]}
55... Re6+ {[%clk 0:00:12.2]} 56. Kf4 {[%clk 0:00:26.2]} 56... Rf6+ {[%clk
0:00:12.7]} 57. Kg3 {[%clk 0:00:27.1]} 57... Ra6 {[%clk 0:00:12.7]} 58. Kh4
{[%clk 0:00:26.9]} 58... f6 {[%clk 0:00:12.7]} 59. f4 {[%clk 0:00:26.9]} 59...
Ra1 {[%clk 0:00:11.9]} 60. f5+ {[%clk 0:00:25.3]} 60... Kh7 {[%clk 0:00:11.9]}
61. Rb7 {[%clk 0:00:25.3]} 61... Rh1+ {[%clk 0:00:11.5]} 62. Kg3 {[%clk
0:00:25.7]} 62... Rg1+ {[%clk 0:00:12.1]} 63. Kf3 {[%clk 0:00:26.3]} 63... Rf1+
{[%clk 0:00:12.6]} 64. Ke4 {[%clk 0:00:26.9]} 64... Rg1 {[%clk 0:00:13]} 65. Kf4
{[%clk 0:00:27.3]} 65... Rf1+ {[%clk 0:00:13.5]} 66. Kg3 {[%clk 0:00:27.9]}
66... Rg1+ {[%clk 0:00:14]} 67. Kf3 {[%clk 0:00:28.6]} 67... Rf1+ {[%clk
0:00:14.4]} 68. Kg2 {[%clk 0:00:29]} 68... Ra1 {[%clk 0:00:14.2]} 69. Kg3 {[%clk
0:00:29]} 69... Rg1+ {[%clk 0:00:13.7]} 1/2-1/2

[Event "Early-Titled-Tuesday-Blitz-February-13-2024"]
[Site "Chess.com"]
[Date "2024.02.13"]
[Round "3"]
[White "CFN_Good_Evening"]
[Black "Evgeny81"]
[Result "0-1"]
[WhiteElo "2053"]
[BlackElo "2709"]
[TimeControl "180+1"]
[EndTime "8:32:57 PST"]
[Termination "Evgeny81 won on time"]

1. e4 {[%clk 0:03:00.9]} 1... c5 {[%clk 0:02:59.4]} 2. Nf3 {[%clk 0:03:00.8]}
2... Nc6 {[%clk 0:02:57.1]} 3. Bb5 {[%clk 0:03:00.7]} 3... e5 {[%clk 0:02:56.5]}
4. O-O {[%clk 0:02:54.7]} 4... Bd6 {[%clk 0:02:56.6]} 5. c3 {[%clk 0:02:52]}
5... a6 {[%clk 0:02:55.4]} 6. Bxc6 {[%clk 0:02:50]} 6... dxc6 {[%clk 0:02:56.3]}
7. d4 {[%clk 0:02:50.5]} 7... exd4 {[%clk 0:02:54.1]} 8. cxd4 {[%clk 0:02:51.4]}
8... Bg4 {[%clk 0:02:53.6]} 9. dxc5 {[%clk 0:01:57.6]} 9... Bxc5 {[%clk
0:02:50.3]} 10. Qb3 {[%clk 0:01:58.2]} 10... Qb6 {[%clk 0:02:42.2]} 11. Qxb6
{[%clk 0:01:49.1]} 11... Bxb6 {[%clk 0:02:43.1]} 12. Ne5 {[%clk 0:01:49.5]}
12... Be6 {[%clk 0:02:34.5]} 13. Nd2 {[%clk 0:01:27.7]} 13... f6 {[%clk
0:02:29.9]} 14. Nec4 {[%clk 0:01:26]} 14... Bd4 {[%clk 0:02:26.1]} 15. Nd6+
{[%clk 0:01:16]} 15... Ke7 {[%clk 0:02:22.8]} 16. Nxb7 {[%clk 0:01:16.2]} 16...
a5 {[%clk 0:02:17.7]} 17. Nb3 {[%clk 0:01:11.4]} 17... Bxb3 {[%clk 0:02:14.7]}
18. axb3 {[%clk 0:01:12.3]} 18... Nh6 {[%clk 0:01:59]} 19. Nxa5 {[%clk
0:01:08.8]} 19... Ra6 {[%clk 0:01:48.8]} 20. b4 {[%clk 0:01:01]} 20... Ng4
{[%clk 0:01:42.7]} 21. Bd2 {[%clk 0:00:55.8]} 21... Rd8 {[%clk 0:01:32.6]} 22.
Bc3 {[%clk 0:00:52]} 22... Kf7 {[%clk 0:01:20.3]} 23. h3 {[%clk 0:00:51.3]}
23... Bxc3 {[%clk 0:01:11.8]} 24. bxc3 {[%clk 0:00:50.3]} 24... Ne5 {[%clk
0:01:12.4]} 25. Rfd1 {[%clk 0:00:48.9]} 25... Raa8 {[%clk 0:01:05.6]} 26. f4
{[%clk 0:00:33.6]} 26... Ng6 {[%clk 0:01:05.4]} 27. Nxc6 {[%clk 0:00:33.2]}
27... Rxd1+ {[%clk 0:01:01.5]} 28. Rxd1 {[%clk 0:00:34.1]} 28... Nxf4 {[%clk
0:01:01.7]} 29. Kf2 {[%clk 0:00:33.1]} 29... Ra2+ {[%clk 0:01:00.9]} 30. Ke3
{[%clk 0:00:33.1]} 30... Nxg2+ {[%clk 0:00:58.9]} 31. Kd4 {[%clk 0:00:32.8]}
31... Nf4 {[%clk 0:00:53.7]} 32. b5 {[%clk 0:00:30.9]} 32... Rb2 {[%clk
0:00:50.1]} 33. c4 {[%clk 0:00:30.5]} 33... Ne2+ {[%clk 0:00:47.1]} 34. Kc5
{[%clk 0:00:27.8]} 34... Nc3 {[%clk 0:00:47.4]} 35. Rd7+ {[%clk 0:00:27]} 35...
Kg6 {[%clk 0:00:47.2]} 36. Kd4 {[%clk 0:00:23]} 36... Nxb5+ {[%clk 0:00:36.5]}
37. cxb5 {[%clk 0:00:14]} 37... Rd2+ {[%clk 0:00:36.4]} 38. Kc5 {[%clk
0:00:14.7]} 38... Rxd7 {[%clk 0:00:37.3]} 39. b6 {[%clk 0:00:15.6]} 39... Kg5
{[%clk 0:00:32.8]} 40. Nd4 {[%clk 0:00:09.6]} 40... Kh4 {[%clk 0:00:29.5]} 41.
Nf5+ {[%clk 0:00:07.9]} 41... Kxh3 {[%clk 0:00:28.7]} 42. Kc6 {[%clk 0:00:08.8]}
42... Rd1 {[%clk 0:00:19.1]} 43. b7 {[%clk 0:00:07.1]} 43... Rc1+ {[%clk
0:00:18.1]} 44. Kd7 {[%clk 0:00:06.9]} 44... Rb1 {[%clk 0:00:17.6]} 45. Kc7
{[%clk 0:00:07.1]} 45... g6 {[%clk 0:00:11.7]} 46. Ne3 {[%clk 0:00:03.3]} 46...
g5 {[%clk 0:00:08.9]} 47. b8=Q {[%clk 0:00:02.9]} 47... Rxb8 {[%clk 0:00:08.1]}
48. Kxb8 {[%clk 0:00:02.8]} 48... g4 {[%clk 0:00:08.7]} 49. Kc7 {[%clk
0:00:03.5]} 49... Kg3 {[%clk 0:00:06.7]} 50. Kd6 {[%clk 0:00:02.9]} 50... Kf3
{[%clk 0:00:06.8]} 0-1

[Event "Early-Titled-Tuesday-Blitz-February-13-2024"]
[Site "Chess.com"]
[Date "2024.02.13"]
[Round "3"]
[White "RamonManon0g"]
[Black "Pertinhez76"]
[Result "1-0"]
[WhiteElo "2407"]
[BlackElo "2172"]
[TimeControl "180+1"]
[EndTime "8:32:57 PST"]
[Termination "RamonManon0g won by checkmate"]

1. e4 {[%clk 0:03:00.9]} 1... c5 {[%clk 0:02:56.2]} 2. Nf3 {[%clk 0:02:59.5]}
2... d6 {[%clk 0:02:54.6]} 3. Bb5+ {[%clk 0:02:59.1]} 3... Nd7 {[%clk
0:02:53.7]} 4. a4 {[%clk 0:02:58.6]} 4... a6 {[%clk 0:02:53.5]} 5. Be2 {[%clk
0:02:56.4]} 5... Ngf6 {[%clk 0:02:54]} 6. Nc3 {[%clk 0:02:56.1]} 6... g6 {[%clk
0:02:54.7]} 7. O-O {[%clk 0:02:55.4]} 7... Bg7 {[%clk 0:02:55.2]} 8. d4 {[%clk
0:02:55.4]} 8... cxd4 {[%clk 0:02:54.6]} 9. Nxd4 {[%clk 0:02:56.3]} 9... O-O
{[%clk 0:02:54.8]} 10. h3 {[%clk 0:02:54.7]} 10... b6 {[%clk 0:02:55.1]} 11. Bg5
{[%clk 0:02:53.2]} 11... Bb7 {[%clk 0:02:55.3]} 12. Bf3 {[%clk 0:02:53.4]} 12...
Ne5 {[%clk 0:02:54.9]} 13. Re1 {[%clk 0:02:52.2]} 13... Rc8 {[%clk 0:02:55.4]}
14. Qd2 {[%clk 0:02:46]} 14... Qc7 {[%clk 0:02:52.1]} 15. Bh6 {[%clk 0:02:38.8]}
15... Nc4 {[%clk 0:02:51.8]} 16. Qc1 {[%clk 0:02:34]} 16... Nxb2 {[%clk
0:02:50.5]} 17. Bxg7 {[%clk 0:02:33.8]} 17... Kxg7 {[%clk 0:02:47.6]} 18. Qxb2
{[%clk 0:02:33.4]} 18... Qxc3 {[%clk 0:02:48.1]} 19. Qxb6 {[%clk 0:02:33.5]}
19... Ba8 {[%clk 0:02:30.8]} 20. Ne2 {[%clk 0:02:09.4]} 20... Qxc2 {[%clk
0:02:23.8]} 21. Qxa6 {[%clk 0:02:09.2]} 21... Bxe4 {[%clk 0:02:18.5]} 22. Nd4
{[%clk 0:02:00.4]} 22... Bd3 {[%clk 0:02:14.9]} 23. Nxc2 {[%clk 0:01:56.1]}
23... Bxa6 {[%clk 0:02:14.2]} 24. Nb4 {[%clk 0:01:57]} 24... Bc4 {[%clk
0:02:07.1]} 25. Rxe7 {[%clk 0:01:56.8]} 25... d5 {[%clk 0:01:54.2]} 26. a5
{[%clk 0:01:53.3]} 26... Ra8 {[%clk 0:01:50]} 27. a6 {[%clk 0:01:52.6]} 27...
Rfb8 {[%clk 0:01:48.6]} 28. Nc6 {[%clk 0:01:36.7]} 28... Rb6 {[%clk 0:01:43.8]}
29. Ne5 {[%clk 0:01:32.2]} 29... Raxa6 {[%clk 0:01:35.6]} 30. Rxa6 {[%clk
0:01:26.5]} 30... Rxa6 {[%clk 0:01:36.5]} 31. Rxf7+ {[%clk 0:01:26.4]} 31... Kg8
{[%clk 0:01:30.9]} 32. Rc7 {[%clk 0:01:18.4]} 32... Ra1+ {[%clk 0:01:24.3]} 33.
Kh2 {[%clk 0:01:18.4]} 33... Ra2 {[%clk 0:01:25]} 34. Kg3 {[%clk 0:01:02.5]}
34... Rc2 {[%clk 0:01:15.9]} 35. Kf4 {[%clk 0:00:39.8]} 35... Bb3 {[%clk
0:00:52.8]} 36. Rb7 {[%clk 0:00:39.4]} 36... Ba2 {[%clk 0:00:48.6]} 37. Kg5
{[%clk 0:00:39.4]} 37... Ne8 {[%clk 0:00:43.8]} 38. Kh6 {[%clk 0:00:35.4]} 38...
Rc8 {[%clk 0:00:35.3]} 39. Rxh7 {[%clk 0:00:26.9]} 39... Bb1 {[%clk 0:00:31.4]}
40. Bg4 {[%clk 0:00:22.9]} 40... Rc7 {[%clk 0:00:21.5]} 41. Be6+ {[%clk
0:00:21.3]} 41... Kf8 {[%clk 0:00:21.9]} 42. Nd7+ {[%clk 0:00:16]} 42... Rxd7
{[%clk 0:00:20.7]} 43. Bxd7 {[%clk 0:00:16.9]} 43... Nf6 {[%clk 0:00:18.9]} 44.
Rh8+ {[%clk 0:00:16]} 44... Ke7 {[%clk 0:00:18.9]} 45. Bg4 {[%clk 0:00:16.5]}
45... d4 {[%clk 0:00:19.1]} 46. Rb8 {[%clk 0:00:14.8]} 46... Be4 {[%clk
0:00:17.7]} 47. Rb4 {[%clk 0:00:14.4]} 47... Bxg2 {[%clk 0:00:17.1]} 48. Rxd4
{[%clk 0:00:13.8]} 48... Kf7 {[%clk 0:00:17]} 49. Rf4 {[%clk 0:00:12.7]} 49...
Ke7 {[%clk 0:00:15.5]} 50. h4 {[%clk 0:00:13.2]} 50... Bd5 {[%clk 0:00:15.2]}
51. Kg5 {[%clk 0:00:12.8]} 51... Ne4+ {[%clk 0:00:13.6]} 52. Kxg6 {[%clk
0:00:13]} 52... Nd6 {[%clk 0:00:13.4]} 53. h5 {[%clk 0:00:13.3]} 53... Ba2
{[%clk 0:00:12.3]} 54. h6 {[%clk 0:00:13.7]} 54... Bb1+ {[%clk 0:00:12.6]} 55.
Bf5 {[%clk 0:00:13.6]} 55... Nxf5 {[%clk 0:00:13]} 56. Rxf5 {[%clk 0:00:14.5]}
56... Bxf5+ {[%clk 0:00:13]} 57. Kxf5 {[%clk 0:00:14.4]} 57... Kf7 {[%clk
0:00:13.9]} 58. Kg5 {[%clk 0:00:14.2]} 58... Kg8 {[%clk 0:00:14]} 59. Kg6 {[%clk
0:00:14.5]} 59... Kh8 {[%clk 0:00:14.5]} 60. f4 {[%clk 0:00:15.3]} 60... Kg8
{[%clk 0:00:15]} 61. f5 {[%clk 0:00:16.2]} 61... Kh8 {[%clk 0:00:15.6]} 62. f6
{[%clk 0:00:17.1]} 62... Kg8 {[%clk 0:00:16.3]} 63. Kf5 {[%clk 0:00:16]} 63...
Kh7 {[%clk 0:00:15]} 64. Ke6 {[%clk 0:00:16.1]} 64... Kg8 {[%clk 0:00:14.3]} 65.
Ke7 {[%clk 0:00:17]} 65... Kh7 {[%clk 0:00:14.2]} 66. f7 {[%clk 0:00:17.4]}
66... Kg6 {[%clk 0:00:15]} 67. f8=Q {[%clk 0:00:17.7]} 67... Kh7 {[%clk
0:00:14.7]} 68. Qg7# {[%clk 0:00:18]} 1-0

[Event "Early-Titled-Tuesday-Blitz-February-13-2024"]
[Site "Chess.com"]
[Date "2024.02.13"]
[Round "3"]
[White "Grossboss19"]
[Black "KanalSzachowy"]
[Result "0-1"]
[WhiteElo "2593"]
[BlackElo "2403"]
[TimeControl "180+1"]
[EndTime "8:32:59 PST"]
[Termination "KanalSzachowy won on time"]

1. c4 {[%clk 0:03:00.2]} 1... c5 {[%clk 0:02:58.6]} 2. Nc3 {[%clk 0:03:00.3]}
2... Nc6 {[%clk 0:02:57.8]} 3. g3 {[%clk 0:02:58.9]} 3... g6 {[%clk 0:02:56.2]}
4. Bg2 {[%clk 0:02:59]} 4... Bg7 {[%clk 0:02:56.1]} 5. Nf3 {[%clk 0:02:56.3]}
5... e5 {[%clk 0:02:56]} 6. O-O {[%clk 0:02:53.1]} 6... d6 {[%clk 0:02:55.3]} 7.
Ne1 {[%clk 0:02:53.3]} 7... Be6 {[%clk 0:02:55]} 8. d3 {[%clk 0:02:49.1]} 8...
Nge7 {[%clk 0:02:52.6]} 9. Nc2 {[%clk 0:02:47.6]} 9... d5 {[%clk 0:02:52.5]} 10.
cxd5 {[%clk 0:02:47.6]} 10... Nxd5 {[%clk 0:02:52.5]} 11. a3 {[%clk 0:02:43]}
11... O-O {[%clk 0:02:49.4]} 12. Rb1 {[%clk 0:02:38.2]} 12... a5 {[%clk
0:02:42.1]} 13. Ne3 {[%clk 0:02:34.2]} 13... Nde7 {[%clk 0:02:28.6]} 14. Nc4
{[%clk 0:02:24.7]} 14... Rb8 {[%clk 0:02:27.3]} 15. Nb5 {[%clk 0:02:16.3]} 15...
b6 {[%clk 0:02:26]} 16. Bd2 {[%clk 0:02:05.6]} 16... Qd7 {[%clk 0:02:22.3]} 17.
b4 {[%clk 0:01:58.2]} 17... cxb4 {[%clk 0:02:17.5]} 18. axb4 {[%clk 0:01:55.6]}
18... Bh3 {[%clk 0:02:12.6]} 19. Bxh3 {[%clk 0:01:46.7]} 19... Qxh3 {[%clk
0:02:13.5]} 20. bxa5 {[%clk 0:01:47.2]} 20... bxa5 {[%clk 0:02:08.6]} 21. Nxa5
{[%clk 0:01:47]} 21... Nxa5 {[%clk 0:01:58.9]} 22. Bxa5 {[%clk 0:01:47.9]} 22...
Nd5 {[%clk 0:01:59.5]} 23. Bd2 {[%clk 0:01:45.4]} 23... h5 {[%clk 0:01:58]} 24.
f3 {[%clk 0:01:21.6]} 24... h4 {[%clk 0:01:50.3]} 25. Qe1 {[%clk 0:01:20.1]}
25... Rfc8 {[%clk 0:01:45]} 26. Qf2 {[%clk 0:01:14.4]} 26... hxg3 {[%clk
0:01:41.4]} 27. hxg3 {[%clk 0:01:08.8]} 27... Rc2 {[%clk 0:01:32.8]} 28. Rfd1
{[%clk 0:00:55.6]} 28... Rxd2 {[%clk 0:01:26.9]} 29. Rxd2 {[%clk 0:00:53.9]}
29... Bh6 {[%clk 0:01:27.5]} 30. f4 {[%clk 0:00:50.5]} 30... exf4 {[%clk
0:01:27.8]} 31. Qg2 {[%clk 0:00:32.5]} 31... Qxg2+ {[%clk 0:01:25.9]} 32. Kxg2
{[%clk 0:00:33.4]} 32... f3+ {[%clk 0:01:26.5]} 33. Kxf3 {[%clk 0:00:33.4]}
33... Bxd2 {[%clk 0:01:27.1]} 34. e4 {[%clk 0:00:30.3]} 34... Nc7 {[%clk
0:01:21.8]} 35. Rd1 {[%clk 0:00:27.8]} 35... Nxb5 {[%clk 0:01:21.5]} 36. Rxd2
{[%clk 0:00:28.2]} 36... Nd4+ {[%clk 0:01:21.8]} 37. Ke3 {[%clk 0:00:28.7]}
37... Rd8 {[%clk 0:01:22.1]} 38. Rb2 {[%clk 0:00:29.2]} 38... Ne6 {[%clk
0:01:13.6]} 39. Rb4 {[%clk 0:00:25.8]} 39... Ra8 {[%clk 0:01:10.8]} 40. Rb3
{[%clk 0:00:24]} 40... Kg7 {[%clk 0:01:09.5]} 41. d4 {[%clk 0:00:23.5]} 41...
Ra4 {[%clk 0:00:47.8]} 42. Rd3 {[%clk 0:00:19.4]} 42... Kf6 {[%clk 0:00:44.5]}
43. g4 {[%clk 0:00:19.3]} 43... Kg5 {[%clk 0:00:41.3]} 44. d5 {[%clk 0:00:17.2]}
44... Nc5 {[%clk 0:00:37.4]} 45. Rd4 {[%clk 0:00:16.1]} 45... Ra3+ {[%clk
0:00:32.9]} 46. Ke2 {[%clk 0:00:14.2]} 46... Kf4 {[%clk 0:00:29.7]} 47. d6
{[%clk 0:00:12.3]} 47... Re3+ {[%clk 0:00:25.6]} 48. Kf2 {[%clk 0:00:05.3]}
48... Rxe4 {[%clk 0:00:26]} 49. Rd5 {[%clk 0:00:04.6]} 49... Nd7 {[%clk
0:00:18.3]} 50. Rb5 {[%clk 0:00:04.4]} 50... Rd4 {[%clk 0:00:16.5]} 51. g5
{[%clk 0:00:03.8]} 51... Rd2+ {[%clk 0:00:14.3]} 52. Ke1 {[%clk 0:00:03.9]}
52... Rd4 {[%clk 0:00:11.9]} 53. Ke2 {[%clk 0:00:04.8]} 53... Re4+ {[%clk
0:00:10.2]} 54. Kd3 {[%clk 0:00:04.7]} 54... Re5 {[%clk 0:00:07.7]} 0-1

[Event "Early-Titled-Tuesday-Blitz-February-13-2024"]
[Site "Chess.com"]
[Date "2024.02.13"]
[Round "3"]
[White "OPQRC"]
[Black "Aanna12"]
[Result "1-0"]
[WhiteElo "2536"]
[BlackElo "2265"]
[TimeControl "180+1"]
[EndTime "8:33:00 PST"]
[Termination "OPQRC won on time"]

1. g3 {[%clk 0:03:00.9]} 1... d6 {[%clk 0:02:58.2]} 2. Bg2 {[%clk 0:02:59.3]}
2... e5 {[%clk 0:02:57]} 3. d4 {[%clk 0:02:55.9]} 3... Nd7 {[%clk 0:02:56.2]} 4.
c3 {[%clk 0:02:51.5]} 4... g6 {[%clk 0:02:55.7]} 5. Nh3 {[%clk 0:02:48.9]} 5...
Bg7 {[%clk 0:02:54.7]} 6. O-O {[%clk 0:02:48.7]} 6... Ngf6 {[%clk 0:02:54.7]} 7.
e4 {[%clk 0:02:44.4]} 7... O-O {[%clk 0:02:54.3]} 8. f4 {[%clk 0:02:44.3]} 8...
c6 {[%clk 0:02:38.4]} 9. f5 {[%clk 0:02:42.5]} 9... Qc7 {[%clk 0:02:37]} 10. Kh1
{[%clk 0:02:41]} 10... Re8 {[%clk 0:02:36.5]} 11. Qb3 {[%clk 0:02:09.3]} 11...
d5 {[%clk 0:02:27.6]} 12. Ng5 {[%clk 0:01:57.9]} 12... Qb6 {[%clk 0:02:24]} 13.
exd5 {[%clk 0:01:52.3]} 13... Qxb3 {[%clk 0:02:22.2]} 14. axb3 {[%clk
0:01:53.2]} 14... cxd5 {[%clk 0:02:22.4]} 15. fxg6 {[%clk 0:01:40.8]} 15... hxg6
{[%clk 0:02:21.4]} 16. Be3 {[%clk 0:01:36]} 16... e4 {[%clk 0:02:18]} 17. Nd2
{[%clk 0:01:31.3]} 17... Nf8 {[%clk 0:02:17.3]} 18. h3 {[%clk 0:01:29.4]} 18...
Ne6 {[%clk 0:02:11.5]} 19. c4 {[%clk 0:01:25.1]} 19... Nxg5 {[%clk 0:02:06.7]}
20. Bxg5 {[%clk 0:01:24.3]} 20... Nh7 {[%clk 0:02:04]} 21. Be3 {[%clk
0:01:24.2]} 21... Be6 {[%clk 0:02:03.9]} 22. Ra5 {[%clk 0:01:19.8]} 22... b6
{[%clk 0:01:57.5]} 23. Ra6 {[%clk 0:01:17.3]} 23... Bc8 {[%clk 0:01:49.8]} 24.
Ra2 {[%clk 0:01:14.9]} 24... Bb7 {[%clk 0:01:49]} 25. Rfa1 {[%clk 0:01:13.8]}
25... a5 {[%clk 0:01:47.3]} 26. cxd5 {[%clk 0:01:03.6]} 26... Bxd5 {[%clk
0:01:46.4]} 27. Nc4 {[%clk 0:01:03.7]} 27... Rab8 {[%clk 0:01:35.4]} 28. Bf4
{[%clk 0:00:55.6]} 28... Bxd4 {[%clk 0:01:28.8]} 29. Bxb8 {[%clk 0:00:54]} 29...
Rxb8 {[%clk 0:01:28.8]} 30. Rd1 {[%clk 0:00:53.6]} 30... Bxc4 {[%clk 0:01:16.7]}
31. bxc4 {[%clk 0:00:54.5]} 31... Bc5 {[%clk 0:01:15.6]} 32. Bxe4 {[%clk
0:00:54.5]} 32... Ng5 {[%clk 0:01:13.9]} 33. Bd5 {[%clk 0:00:54.3]} 33... Kg7
{[%clk 0:01:06]} 34. h4 {[%clk 0:00:53.9]} 34... Nh7 {[%clk 0:01:03.8]} 35. Re1
{[%clk 0:00:47]} 35... Nf6 {[%clk 0:01:03.3]} 36. b3 {[%clk 0:00:44.8]} 36...
Rd8 {[%clk 0:01:01.8]} 37. Rd1 {[%clk 0:00:43.7]} 37... Re8 {[%clk 0:01:00.1]}
38. Kg2 {[%clk 0:00:42.2]} 38... Re3 {[%clk 0:00:59.7]} 39. Rb2 {[%clk
0:00:33.7]} 39... Nh5 {[%clk 0:00:58.8]} 40. Bf3 {[%clk 0:00:31.2]} 40... Nf6
{[%clk 0:00:50.8]} 41. Rdb1 {[%clk 0:00:29.8]} 41... Nd7 {[%clk 0:00:43.6]} 42.
Re2 {[%clk 0:00:28.6]} 42... Rc3 {[%clk 0:00:42.6]} 43. g4 {[%clk 0:00:23.3]}
43... Bd4 {[%clk 0:00:40.6]} 44. Rd1 {[%clk 0:00:22]} 44... Ne5 {[%clk
0:00:33.6]} 45. Rxd4 {[%clk 0:00:20.6]} 45... Nxf3 {[%clk 0:00:32.8]} 46. Rd7
{[%clk 0:00:16.9]} 46... Nxh4+ {[%clk 0:00:30.8]} 47. Kh2 {[%clk 0:00:17.5]}
47... Nf3+ {[%clk 0:00:30.1]} 48. Kg2 {[%clk 0:00:15.8]} 48... Ng5 {[%clk
0:00:23.4]} 49. Rb2 {[%clk 0:00:14.5]} 49... Ne6 {[%clk 0:00:22.3]} 50. Rd6
{[%clk 0:00:13.6]} 50... Nf4+ {[%clk 0:00:18]} 51. Kh2 {[%clk 0:00:13.8]} 51...
Rh3+ {[%clk 0:00:09]} 52. Kg1 {[%clk 0:00:13.9]} 52... Nd3 {[%clk 0:00:07.7]}
53. Rb1 {[%clk 0:00:09.5]} 1-0